fUST/lending_fUST_20260102
["ID","MTS","AMOUNT","RATE_DAILY","PERIOD"]
[400311973,1767348646648,-2075.66,0.00012329,2]
[400311974,1767348646658,-1729.72,0.00012329,2]
[400311975,1767348646667,-1059.03238953,0.00012329,2]
[400311983,1767348976553,203.1699607,0.00028767,120]
[400311996,1767349827860,750114.10777052,9.661e-05,2]
[400312036,1767349832417,-300.0,9.76e-05,2]
[400312037,1767349832426,-237.67854359,9.76e-05,2]
[400312048,1767349838111,-319.32145641,9.76e-05,2]
[400312049,1767349838121,-150.0,9.76e-05,2]
[400312050,1767349838130,-3978.87185495,9.956e-05,2]
[400312051,1767349838148,-557.66978425,9.956e-05,2]
[400312052,1767349838236,-625.52084861,9.956e-05,2]
[400312053,1767349838250,-9578.25119932,9.956e-05,2]
[400312054,1767349838265,-13512.83496693,9.956e-05,2]
[400312055,1767349838281,-300.0,9.956e-05,2]
[400312056,1767349838291,-300.0,9.956e-05,2]
[400312057,1767349838302,-300.0,9.956e-05,2]
[400312059,1767349838312,-300.0,9.956e-05,2]
[400312061,1767349838322,-300.0,9.956e-05,2]
[400312064,1767349838332,-300.0,9.956e-05,2]
[400312066,1767349838341,-300.0,9.956e-05,2]
[400312068,1767349838351,-300.0,9.956e-05,2]
[400312070,1767349838361,-300.0,9.956e-05,2]
[400312072,1767349838371,-300.0,9.956e-05,2]
[400312073,1767349838380,-300.0,9.956e-05,2]
[400312075,1767349838390,-300.0,9.956e-05,2]
[400312077,1767349838399,-300.0,9.956e-05,2]
[400312079,1767349838408,-300.0,9.956e-05,2]
[400312081,1767349838418,-300.0,9.956e-05,2]
[400312083,1767349838427,-600.0,9.956e-05,2]
[400312085,1767349838437,-175.25878754,9.956e-05,2]
[400312087,1767349838446,-2917.61318561,0.0001,2]
[400312089,1767349838455,-154.77208259,0.00010055,2]
[400312091,1767349838464,-110.86458377,0.00010111,2]
[400312134,1767349840260,-631.09534343,0.00010111,2]
[400312136,1767349840269,-200.0,0.00010411,2]
[400312137,1767349840278,-162.96338163,0.00010411,2]
[400312138,1767349840288,-420.0,0.00010736,2]
[400312139,1767349840297,-769.21012405,0.00010802,2]
[400312140,1767349840306,-574.12855637,0.00010926,2]
[400312141,1767349840316,-720.0,0.00010952,2]
[400312142,1767349840325,-399.99999901,0.00011,2]
[400312143,1767349840335,-857.37,0.00011242,2]
[400312144,1767349840345,-595.37131296,0.00011474,2]
[400312145,1767349840354,-1365.0,0.00011685,2]
[400312146,1767349840364,-2157.0,0.00011685,2]
[400312148,1767349840373,-628.0,0.00011685,2]
[400312150,1767349840383,-416.0,0.00011685,2]
[400312151,1767349840392,-416.0,0.00011685,2]
[400312152,1767349840400,-883.0,0.00011685,2]
[400312153,1767349840409,-239.942,0.00011685,2]
[400312154,1767349840419,-177.0,0.0001176,2]
[400312155,1767349840428,-587.0,0.00011809,2]
[400312156,1767349840439,-5451.0,0.00012,2]
[400312157,1767349840449,-301.21788255,0.00012022,2]
[400312183,1767349846128,-255.21380565,0.00011999,2]
[400312184,1767349846137,-316.18216899,0.00012022,2]
[400312185,1767349846146,-151.0,0.00012038,2]
[400312186,1767349846155,-235.46861904,0.00012038,2]
[400312187,1767349846236,-83.28880186,0.00012038,2]
[400312188,1767349846245,-864.0,0.00012047,2]
[400312189,1767349846254,-2480.34481955,0.0001209,2]
[400312190,1767349846264,-1714.74,0.00012264,2]
[400312191,1767349846273,-1041.66666667,0.00012296,2]
[400312192,1767349846283,-1019.77,0.00012329,2]
[400312193,1767349846292,-1094.97,0.00012329,2]
[400312194,1767349846302,-912.47,0.00012329,2]
[400312195,1767349846311,-760.39,0.00012329,2]
[400312196,1767349846321,-633.66,0.00012329,2]
[400312197,1767349846330,-528.05,0.00012329,2]
[400312198,1767349846339,-440.04,0.00012329,2]
[400312199,1767349846348,-366.7,0.00012329,2]
[400312200,1767349846357,-305.59,0.00012329,2]
[400312201,1767349846366,-254.65,0.00012329,2]
[400312202,1767349846375,-212.21,0.00012329,2]
[400312203,1767349846384,-176.84,0.00012329,2]
[400312204,1767349846393,-884.25,0.00012329,2]
[400312205,1767349846402,-640.24385345,0.0001257,2]
[400312206,1767349846411,-151.0,0.000126,2]
[400312207,1767349846419,-156.91,0.000127,2]
[400312208,1767349846429,-177.0,0.00012737,2]
[400312209,1767349846439,-177.0,0.00012768,2]
[400312210,1767349846448,-174.0,0.00012797,2]
[400312211,1767349846457,-174.0,0.00012883,2]
[400312212,1767349846466,-726.0,0.00012893,2]
[400312213,1767349846475,-151.0,0.000129,2]
[400312214,1767349846484,-1657.02548358,0.000129,2]
[400312215,1767349846773,-732.59292729,0.000129,2]
[400312226,1767350787345,300.0,0.000284,120]
[400312227,1767350861458,258.0,0.000284,120]
[400312228,1767350871465,300.0,0.000284,120]
[400312411,1767351038329,-824.63,0.00011212,2]
[400312412,1767351038338,-150.0,0.00011288,2]
[400312413,1767351038348,-274.33535677,0.00011373,2]
[400312414,1767351038357,-156.51124134,0.00011653,2]
[400312415,1767351038367,-300.0,0.00011687,2]
[400312416,1767351038377,-628.0,0.00011688,2]
[400312417,1767351038386,-1365.0,0.00011688,2]
[400312418,1767351038396,-2157.0,0.00011688,2]
[400312419,1767351038405,-300.0,0.00011921,2]
[400312420,1767351038415,-300.0,0.00011921,2]
[400312421,1767351038425,-300.0,0.00011921,2]
[400312422,1767351038435,-300.0,0.00011921,2]
[400312423,1767351038444,-300.0,0.00011921,2]
[400312424,1767351038454,-300.0,0.00011921,2]
[400312425,1767351038463,-300.0,0.00011921,2]
[400312426,1767351038473,-300.0,0.00011921,2]
[400312427,1767351038483,-300.0,0.00011921,2]
[400312428,1767351038495,-300.0,0.00011921,2]
[400312429,1767351038505,-300.0,0.00011921,2]
[400312430,1767351038515,-300.0,0.00011921,2]
[400312431,1767351038526,-300.0,0.00011921,2]
[400312432,1767351038536,-300.0,0.00011921,2]
[400312433,1767351038546,-300.0,0.00011921,2]
[400312434,1767351038556,-158.0891401,0.00011921,2]
[400312435,1767351038566,-2874.8402383,0.00012052,2]
[400312436,1767351038576,-600.0,0.00012158,2]
[400312437,1767351038585,-160.0,0.00012263,2]
[400312438,1767351038595,-1041.66666667,0.00012263,2]
[400312439,1767351038605,-1649.27,0.00012334,2]
[400312440,1767351038615,-648.68337977,0.00012642,2]
[400312441,1767351038628,-2480.34481955,0.00012807,2]
[400312442,1767351038639,-420.0,0.00012834,2]
[400312443,1767351038648,-174.0,0.00012888,2]
[400312444,1767351038658,-174.0,0.00012966,2]
[400312445,1767351038667,-574.12855637,0.00012992,2]
[400312446,1767351038678,-7135.7497987,0.00013,2]
[400312447,1767351038687,-500.0,0.00013,2]
[400312448,1767351038699,-174.0,0.00013099,2]
[400312449,1767351038709,-156.91,0.000131,2]
[400312450,1767351038718,-600.0,0.00013151,2]
[400312451,1767351038728,-151.0,0.000132,2]
[400312452,1767351038737,-174.0,0.00013224,2]
[400312453,1767351038747,-174.0,0.0001326,2]
[400312454,1767351038756,-174.0,0.00013265,2]
[400312455,1767351038766,-174.0,0.00013271,2]
[400312456,1767351038775,-174.0,0.00013272,2]
[400312457,1767351038785,-500.0,0.00013273,2]
[400312458,1767351038795,-500.0,0.00013273,2]
[400312459,1767351038805,-500.0,0.00013273,2]
[400312460,1767351038814,-500.0,0.00013273,2]
[400312461,1767351038824,-59.27439354,0.00013273,2]
[400312462,1767351038839,-440.72560646,0.00013273,2]
[400312463,1767351038848,-500.0,0.00013273,2]
[400312464,1767351038857,-500.0,0.00013273,2]
[400312465,1767351038866,-105.47401697,0.00013273,2]
[400312502,1767351040805,-394.52598303,0.00013273,2]
[400312503,1767351040815,-500.0,0.00013273,2]
[400312504,1767351040824,-500.31158785,0.00013273,2]
[400312505,1767351040834,-500.0,0.00013273,2]
[400312506,1767351040843,-500.0,0.00013273,2]
[400312507,1767351040853,-167.40961904,0.00013273,2]
[400312508,1767351040862,-165.46397157,0.00013273,2]
[400312509,1767351040872,-500.0,0.00013273,2]
[400312510,1767351040881,-500.0,0.00013273,2]
[400312511,1767351040891,-500.0,0.00013273,2]
[400312512,1767351040900,-500.0,0.00013273,2]
[400312513,1767351040910,-500.0,0.00013273,2]
[400312514,1767351040919,-500.0,0.00013273,2]
[400312515,1767351040929,-500.0,0.00013273,2]
[400312516,1767351040938,-500.0,0.00013273,2]
[400312517,1767351040948,-283.24913857,0.00013273,2]
[400312518,1767351040957,-500.0,0.00013273,2]
[400312519,1767351040966,-605.67183482,0.00013273,2]
[400312520,1767351040976,-500.0,0.00013273,2]
[400312521,1767351040985,-500.0,0.00013273,2]
[400312522,1767351040994,-500.0,0.00013273,2]
[400312523,1767351041004,-500.0,0.00013273,2]
[400312524,1767351041013,-500.0,0.00013273,2]
[400312525,1767351041022,-74.74637306,0.00013273,2]
[400312526,1767351041033,-425.78112358,0.00013273,2]
[400312527,1767351041043,-500.0,0.00013273,2]
[400312528,1767351041053,-500.0,0.00013273,2]
[400312529,1767351041062,-500.0,0.00013273,2]
[400312530,1767351041071,-500.74679687,0.00013273,2]
[400312531,1767351041080,-465.61690756,0.00013273,2]
[400312532,1767351041089,-500.0,0.00013273,2]
[400312533,1767351041098,-43.7595824,0.00013273,2]
[400312534,1767351041222,-456.2404176,0.00013273,2]
[400312535,1767351041232,-500.0,0.00013273,2]
[400312536,1767351041240,-500.0,0.00013273,2]
[400312537,1767351041249,-500.0,0.00013273,2]
[400312538,1767351041258,-217.84808758,0.00013273,2]
[400312539,1767351041267,-500.0,0.00013273,2]
[400312540,1767351041277,-500.0,0.00013273,2]
[400312541,1767351041286,-500.0,0.00013273,2]
[400312542,1767351041295,-367.76923461,0.00013273,2]
[400312557,1767351045314,-132.23076539,0.00013273,2]
[400312558,1767351045324,-500.0,0.00013273,2]
[400312559,1767351045333,-500.0,0.00013273,2]
[400312560,1767351045343,-500.0,0.00013273,2]
[400312561,1767351045352,-500.0,0.00013273,2]
[400312562,1767351045361,-171.52557089,0.00013273,2]
[400312563,1767351045370,-500.0,0.00013273,2]
[400312564,1767351045379,-500.0,0.00013273,2]
[400312565,1767351045389,-185.37250154,0.00013273,2]
[400312566,1767351045398,-536.1611377,0.00013273,2]
[400312567,1767351045408,-158.39130377,0.00013273,2]
[400312568,1767351045418,-500.0,0.00013273,2]
[400312569,1767351045427,-500.0,0.00013273,2]
[400312570,1767351045436,-500.0,0.00013273,2]
[400312571,1767351045445,-500.0,0.00013273,2]
[400312572,1767351045454,-500.0,0.00013273,2]
[400312573,1767351045463,-86.9036345,0.00013273,2]
[400312575,1767351046520,-123.69465182,0.00013273,2]
[400312576,1767351046530,-166.32344442,0.00013273,2]
[400312577,1767351762932,1510.14217267,0.00025,120]
[400312578,1767351790383,202.21853786,0.00023915,120]
[400312579,1767351811926,284.37429516,0.00023915,120]
[400312580,1767351925743,5000.0,0.00012,10]
[400312581,1767351948664,5000.0,0.00012,10]
[400312784,1767352238457,-2541.21732874,0.00010648,2]
[400312785,1767352238470,-2420.97983914,0.00010648,2]
[400312786,1767352238561,-37.80283212,0.00010648,2]
[400312787,1767352238571,-569.0,0.00010648,2]
[400312788,1767352238580,-161.41189351,0.0001081,2]
[400312789,1767352238590,-300.0,0.0001086,2]
[400312790,1767352238600,-300.0,0.0001086,2]
[400312791,1767352238609,-300.0,0.0001086,2]
[400312792,1767352238619,-300.0,0.0001086,2]
[400312793,1767352238629,-300.0,0.0001086,2]
[400312794,1767352238638,-300.0,0.0001086,2]
[400312795,1767352238647,-300.0,0.0001086,2]
[400312796,1767352238657,-300.0,0.0001086,2]
[400312797,1767352238667,-300.0,0.0001086,2]
[400312798,1767352238676,-300.0,0.0001086,2]
[400312799,1767352238686,-300.0,0.0001086,2]
[400312800,1767352238695,-300.0,0.0001086,2]
[400312801,1767352238704,-300.0,0.0001086,2]
[400312802,1767352238718,-300.0,0.0001086,2]
[400312803,1767352238727,-300.0,0.0001086,2]
[400312804,1767352238736,-1010.0031755,0.00010865,2]
[400312805,1767352238746,-162.79851253,0.00010925,2]
[400312806,1767352238756,-823.24,0.00011303,2]
[400312807,1767352238765,-300.0,0.00011632,2]
[400312808,1767352238776,-30000.0,0.00011633,2]
[400312809,1767352238786,-500.0,0.00011723,2]
[400312810,1767352238796,-500.0,0.00011723,2]
[400312811,1767352238806,-500.0,0.00011723,2]
[400312812,1767352238815,-500.0,0.00011723,2]
[400312813,1767352238825,-500.0,0.00011723,2]
[400312814,1767352238835,-500.0,0.00011723,2]
[400312815,1767352238845,-417.88443407,0.00011723,2]
[400312816,1767352238855,-500.0,0.00011723,2]
[400312817,1767352238867,-439.04363672,0.00011723,2]
[400312818,1767352238877,-150.0,0.00011726,2]
[400312819,1767352238887,-150.0,0.00011726,2]
[400312820,1767352238896,-1365.0,0.00011726,2]
[400312821,1767352238906,-628.0,0.00011726,2]
[400312822,1767352238916,-270.837,0.00011726,2]
[400312823,1767352238926,-416.0,0.00011726,2]
[400312824,1767352238936,-883.0,0.00011726,2]
[400312825,1767352238945,-239.942,0.00011726,2]
[400312826,1767352238955,-600.0,0.00011865,2]
[400312827,1767352238965,-250.0,0.00012174,2]
[400312828,1767352238975,-250.0,0.00012174,2]
[400312829,1767352238985,-574.12855637,0.00012174,2]
[400312830,1767352238994,-250.0,0.00012174,2]
[400312831,1767352239004,-250.0,0.00012174,2]
[400312832,1767352239014,-250.0,0.00012174,2]
[400312833,1767352239023,-250.0,0.00012174,2]
[400312834,1767352239036,-250.0,0.00012174,2]
[400312835,1767352239046,-250.0,0.00012174,2]
[400312836,1767352239056,-250.0,0.00012174,2]
[400312837,1767352239065,-250.0,0.00012174,2]
[400312838,1767352239075,-250.0,0.00012174,2]
[400312839,1767352239084,-242.32257062,0.00012174,2]
[400312840,1767352239094,-500.0,0.0001218,2]
[400312841,1767352239103,-500.0,0.0001218,2]
[400312842,1767352239114,-500.0,0.0001218,2]
[400312843,1767352239123,-500.0,0.0001218,2]
[400312844,1767352239133,-208.46111316,0.0001218,2]
[400312845,1767352239142,-500.0,0.0001218,2]
[400312846,1767352239151,-500.0,0.0001218,2]
[400312847,1767352239160,-424.83089205,0.0001218,2]
[400312869,1767352240832,-500.0,0.00012174,2]
[400312870,1767352240842,-135.85920093,0.0001218,2]
[400312871,1767352240852,-500.0,0.0001218,2]
[400312872,1767352240861,-500.0,0.0001218,2]
[400312873,1767352240871,-500.0,0.0001218,2]
[400312874,1767352240881,-500.0,0.0001218,2]
[400312875,1767352240891,-500.0,0.0001218,2]
[400312876,1767352240900,-500.0,0.0001218,2]
[400312877,1767352240910,-500.0,0.0001218,2]
[400312878,1767352240919,-500.0,0.0001218,2]
[400312879,1767352240930,-300.0,0.0001218,2]
[400312880,1767352240940,-206.97306,0.00012181,2]
[400312881,1767352240949,-206.97306,0.00012181,2]
[400312882,1767352240959,-206.97306,0.00012181,2]
[400312883,1767352240968,-206.97306,0.00012181,2]
[400312884,1767352240977,-201.040748,0.00012181,2]
[400312885,1767352240987,-8186.20781107,0.00012181,2]
[400312903,1767352245665,-800.0,0.00010542,2]
[400312904,1767352245677,-545.68476901,0.00010542,2]
[400312905,1767352245688,-1156.32253654,0.00012181,2]
[400312906,1767352245699,-4167.54674624,0.00012181,2]
[400313037,1767353437592,-476.32654036,0.00011334,2]
[400313047,1767353437700,-336.43345964,0.00011334,2]
[400313048,1767353437710,-579.0,0.00011334,2]
[400313049,1767353437719,-158.18365564,0.00011359,2]
[400313050,1767353437728,-300.0,0.00011847,2]
[400313051,1767353437737,-628.0,0.00011848,2]
[400313052,1767353437746,-1044.6010893,0.00011848,2]
[400313074,1767353439913,-55.22639526,0.00011848,2]
[400313483,1767354631781,-580.0,0.00011397,2]
[400313484,1767354631790,-163.64758071,0.00011397,2]
[400313485,1767354631800,-802.42,0.00011398,2]
[400313486,1767354631809,-3731.0,0.00011398,5]
[400313487,1767354631819,-376.0,0.00011542,2]
[400313488,1767354631828,-300.0,0.00011543,2]
[400313489,1767354631838,-2138.02688423,0.00011547,2]
[400313490,1767354631847,-434.0,0.00011689,2]
[400313491,1767354631856,-186.92634334,0.00011756,2]
[400313492,1767354631866,-1180.3350106,0.000118,2]
[400313493,1767354631875,-806.33912814,0.00011856,2]
[400313578,1767354637864,-5121.62274866,0.00011856,2]
[400313579,1767354637877,-8337.63387653,0.00011856,2]
[400313580,1767354637918,-2044.97081546,0.00011856,2]
[400313599,1767354639958,-444.64,0.00011856,2]
[400313604,1767354640012,-7380.23319996,0.00011856,2]
[400313605,1767354640022,-165.578448,0.00011856,2]
[400313606,1767354640031,-165.578448,0.00011856,2]
[400313607,1767354640040,-165.578448,0.00011856,2]
[400313608,1767354640049,-165.578448,0.00011856,2]
[400313609,1767354640058,-169.61715997,0.00011856,2]
[400313610,1767354640067,-1365.0,0.00011956,2]
[400313611,1767354640076,-624.271,0.00011956,2]
[400313612,1767354640085,-416.0,0.00011956,2]
[400313613,1767354640094,-259.26198689,0.00011978,2]
[400313614,1767354640103,-288.10182614,0.00011979,2]
[400313615,1767354640112,-518.58328705,0.00011979,2]
[400313616,1767354640122,-921.92584365,0.00011979,2]
[400313617,1767354640131,-1440.5091307,0.00011979,2]
[400313618,1767354640140,-2074.3331482,0.00011979,2]
[400313619,1767354640149,-2823.39789617,0.00011979,2]
[400313621,1767354640158,-3687.70337458,0.00011979,2]
[400313622,1767354640167,-4662.58233387,0.00011979,2]
[400313623,1767354640176,-500.0,0.00012046,2]
[400313624,1767354640185,-500.0,0.00012046,2]
[400313625,1767354640194,-500.0,0.00012046,2]
[400313626,1767354640203,-183.81542331,0.00012046,2]
[400313644,1767354646016,-792.21,0.00011302,2]
[400313645,1767354646025,-259.31751784,0.00012046,2]
[400313646,1767354646036,-56.86705885,0.00012046,2]
[400313647,1767354646046,-500.0,0.00012046,2]
[400313648,1767354646054,-3.13294115,0.00012046,2]
[400313649,1767354646072,-496.86705885,0.00012046,2]
[400313650,1767354646081,-291.22251633,0.00012046,2]
[400313651,1767354646090,-500.0,0.00012046,2]
[400313652,1767354646099,-500.0,0.00012046,2]
[400313653,1767354646108,-500.0,0.00012046,2]
[400313654,1767354646117,-500.0,0.00012046,2]
[400313655,1767354646126,-500.0,0.00012046,2]
[400313656,1767354646135,-500.0,0.00012046,2]
[400313657,1767354646145,-313.18997302,0.00012046,2]
[400313658,1767354646621,-61.73034344,0.00012046,2]
[400313660,1767354646632,-500.0,0.00012046,2]
[400313663,1767354646642,-500.0,0.00012046,2]
[400313665,1767354646651,-500.0,0.00012046,2]
[400313666,1767354646660,-500.0,0.00012046,2]
[400313667,1767354646674,-500.0,0.00012046,2]
[400313668,1767354646684,-500.0,0.00012046,2]
[400313669,1767354646692,-500.0,0.00012046,2]
[400313670,1767354646701,-500.0,0.00012046,2]
[400313671,1767354646712,-500.0,0.00012046,2]
[400313672,1767354646722,-500.0,0.00012046,2]
[400313673,1767354646731,-102.68444194,0.00012046,2]
[400313674,1767354646745,-397.31555806,0.00012046,2]
[400313675,1767354646754,-500.0,0.00012046,2]
[400313676,1767354646763,-500.0,0.00012046,2]
[400313677,1767354646773,-500.0,0.00012046,2]
[400313678,1767354646783,-374.28284814,0.00012046,2]
[400313679,1767354646795,-500.0,0.00012046,2]
[400313680,1767354646804,-500.0,0.00012046,2]
[400313681,1767354646814,-500.0,0.00012046,2]
[400313682,1767354646824,-500.0,0.00012046,2]
[400313683,1767354646833,-500.0,0.00012046,2]
[400313684,1767354646843,-5714.2865982,0.00012047,2]
[400313685,1767354646853,-239.0680657,0.00012047,2]
[400313686,1767354646862,-2156.1301787,0.00012047,2]
[400313687,1767354646871,-165.578448,0.00012051,2]
[400313688,1767354646880,-165.578448,0.00012051,2]
[400313689,1767354646889,-165.578448,0.00012051,2]
[400313690,1767354646898,-165.578448,0.00012051,2]
[400313691,1767354646908,-898.0,0.000122,2]
[400313692,1767354646917,-1041.66666667,0.0001223,2]
[400313693,1767354646926,-165.578448,0.00012328,2]
[400313694,1767354646935,-165.578448,0.00012328,2]
[400313695,1767354646944,-165.578448,0.00012328,2]
[400313696,1767354646954,-165.578448,0.00012328,2]
[400313697,1767354646963,-165.578448,0.00012328,2]
[400313698,1767354646972,-165.578448,0.00012328,2]
[400313699,1767354646982,-165.578448,0.00012328,2]
[400313700,1767354646991,-165.578448,0.00012328,2]
[400313701,1767354647000,-160.0,0.00012329,2]
[400313702,1767354647010,-1584.41,0.00012329,2]
[400313703,1767354647021,-300.0,0.00012424,2]
[400313704,1767354647030,-300.0,0.00012424,2]
[400313705,1767354647039,-300.0,0.00012424,2]
[400313706,1767354647049,-300.0,0.00012424,2]
[400313707,1767354647058,-300.0,0.00012424,2]
[400313708,1767354647067,-300.0,0.00012424,2]
[400313709,1767354647077,-300.0,0.00012424,2]
[400313710,1767354647086,-300.0,0.00012424,2]
[400313711,1767354647095,-120.26412873,0.00012424,2]
[400313732,1767355832030,-564.0,0.0001027,2]
[400313733,1767355832046,-373.79356676,0.0001027,2]
[400313734,1767355832056,-227.58916086,0.00010811,2]
[400313735,1767355832066,-160.37462909,0.00011088,2]
[400313736,1767355832076,-300.0,0.00011366,2]
[400313737,1767355832085,-761.96,0.00011367,2]
[400313738,1767355832094,-13697.59912807,0.00011367,2]
[400313745,1767355837895,-461.985,0.00011367,2]
[400313746,1767355837951,-4291.04653668,0.00011367,2]
[400313747,1767355838009,-3832.64918665,0.00011367,2]
[400313761,1767355844121,-31.52719366,0.00011367,2]
[400313762,1767355844131,-205.48570738,0.00011367,2]
[400313763,1767355844140,-300.0,0.00011593,2]
[400313764,1767355844150,-300.0,0.00011593,2]
[400313765,1767355844159,-300.0,0.00011593,2]
[400313766,1767355844169,-300.0,0.00011593,2]
[400313767,1767355844178,-300.0,0.00011593,2]
[400313768,1767355844187,-300.0,0.00011593,2]
[400313769,1767355844197,-300.0,0.00011593,2]
[400313770,1767355844207,-300.0,0.00011593,2]
[400313771,1767355844217,-300.0,0.00011593,2]
[400313772,1767355844226,-300.0,0.00011593,2]
[400313773,1767355844236,-300.0,0.00011593,2]
[400313774,1767355844245,-300.0,0.00011593,2]
[400313775,1767355844257,-300.0,0.00011593,2]
[400313776,1767355844266,-300.0,0.00011593,2]
[400313777,1767355844276,-198.41717896,0.00011593,2]
[400313778,1767355844288,-101.58282104,0.00011593,2]
[400313779,1767355844298,-250.0,0.0001179,2]
[400313780,1767355844307,-600.0,0.00011824,2]
[400313781,1767355844317,-150.0,0.00012014,2]
[400313782,1767355844327,-150.0,0.00012014,2]
[400313783,1767355844336,-1365.0,0.00012014,2]
[400313784,1767355844346,-3525.1433629,0.00012128,2]
[400313785,1767355844355,-2593.21540517,0.00012128,2]
[400313786,1767355844367,-1692.49954343,0.00012128,2]
[400313787,1767355844376,-151.0,0.00012128,2]
[400313788,1767355844386,-179.3010493,0.00012128,2]
[400313789,1767355844395,-1942.38770552,0.00012208,2]
[400313801,1767355846122,-195.63917871,0.00012208,2]
[400313802,1767355846132,-1041.66666667,0.00012229,2]
[400313803,1767355846141,-189.24206233,0.0001227,2]
[400313804,1767355846151,-375.22421576,0.00012329,2]
[400313805,1767355846177,-405.09040808,0.00012329,2]
[400313806,1767355846190,-107.97537616,0.00012329,2]
[400313807,1767355846200,-1523.92,0.00012401,2]
[400313808,1767355846209,-500.0,0.00012472,2]
[400313809,1767355846219,-500.0,0.00012472,2]
[400313810,1767355846230,-416.5781294,0.00012472,2]
[400313811,1767355846240,-421.24694626,0.00012472,2]
[400313812,1767355846249,-151.0,0.00012473,2]
[400313813,1767355846259,-151.0,0.00012474,2]
[400313814,1767355846268,-156.587,0.00012474,2]
[400313815,1767355846277,-151.53613126,0.00012474,2]
[400313816,1767355846286,-250.0,0.00012474,2]
[400313817,1767355846295,-250.0,0.00012474,2]
[400313818,1767355846305,-250.0,0.00012474,2]
[400313819,1767355846314,-250.0,0.00012474,2]
[400313820,1767355846323,-250.0,0.00012474,2]
[400313821,1767355846333,-250.0,0.00012474,2]
[400313822,1767355846342,-250.0,0.00012474,2]
[400313823,1767355846351,-250.0,0.00012474,2]
[400313824,1767355846360,-154.22546079,0.00012474,2]
[400313825,1767355846369,-250.0,0.00012474,2]
[400313826,1767355846378,-574.12855637,0.00012474,2]
[400313827,1767355846387,-250.0,0.00012474,2]
[400313828,1767355846397,-250.0,0.00012474,2]
[400313829,1767355846406,-151.0,0.00012474,2]
[400313830,1767355846529,-151.0,0.00012474,2]
[400313831,1767355846539,-151.0,0.00012474,2]
[400313832,1767355846550,-1000.0,0.00012474,2]
[400313833,1767355846559,-151.0,0.00012474,2]
[400313834,1767355846568,-151.0,0.00012474,2]
[400313835,1767355846578,-27244.91034161,0.00012474,2]
[400317246,1767357033066,-302.0,0.00011424,2]
[400317254,1767357038154,-430.86,0.00011424,2]
[400317255,1767357038164,-581.0,0.00011424,2]
[400317256,1767357038173,-159.90146619,0.00011507,2]
[400317257,1767357038183,-2139.44083562,0.00012099,2]
[400317266,1767357040355,-901.32466091,0.00012099,2]
[400317267,1767357040416,-16648.53931119,0.00012099,2]
[400317268,1767357040428,-10310.69519228,0.00012099,2]
[400317269,1767357040437,-300.0,0.00012194,2]
[400317270,1767357040447,-1365.0,0.00012195,2]
[400317271,1767357040456,-416.0,0.00012195,2]
[400317272,1767357040466,-883.0,0.00012195,2]
[400317273,1767357040476,-239.942,0.00012195,2]
[400317274,1767357040485,-1041.66666667,0.00012229,2]
[400317275,1767357040495,-2773.56790519,0.00012282,2]
[400317276,1767357040504,-712.06243302,0.00012357,2]
[400317277,1767357040513,-4260.9551562,0.00012358,2]
[400317278,1767357040522,-3214.2862114,0.00012358,2]
[400317279,1767357040531,-1465.73,0.00012463,2]
[400317280,1767357040540,-500.0,0.00012646,2]
[400317281,1767357040549,-500.0,0.00012646,2]